bitfinex-derivatives/quotes_BTCF0:USTF0_20251028
["timestamp","ask_amount","ask_price","bid_price","bid_amount"]
[1761609601486,0.20615576,114160.0,114150.0,0.05804]
[1761609601987,0.18615576,114160.0,114150.0,0.05804]
[1761609602381,0.05615576,114160.0,114150.0,0.02347]
[1761609602586,0.05615576,114160.0,114150.0,0.001]
[1761609602785,0.07981492,114160.0,114150.0,0.05758]
[1761609602978,0.08762492,114160.0,114150.0,0.02265]
[1761609603179,0.08762492,114160.0,114150.0,0.04382]
[1761609603391,0.17522402,114160.0,114150.0,0.04382]
[1761609603691,0.16741402,114160.0,114150.0,0.05758]
[1761609604289,0.16741402,114160.0,114150.0,0.001]
[1761609604480,0.17522402,114160.0,114150.0,0.001]
[1761609604883,0.17522402,114160.0,114150.0,1e-07]
[1761609605083,0.20676957,114160.0,114150.0,1e-07]
[1761609605280,0.20676957,114160.0,114150.0,0.0428201]
[1761609605492,0.19895957,114160.0,114150.0,0.0428201]
[1761609606290,0.16741402,114160.0,114150.0,0.0428201]
[1761609606480,0.17522402,114160.0,114150.0,0.0428201]
[1761609606890,0.17522402,114160.0,114150.0,0.0216501]
[1761609607086,0.16741402,114160.0,114150.0,0.0437701]
[1761609607392,0.1441768,114150.0,114140.0,6.331e-05]
[1761609607593,0.16650224,114150.0,114140.0,0.04402331]
[1761609607791,0.16650224,114150.0,114140.0,6.331e-05]
[1761609608193,0.16809256,114150.0,114140.0,6.331e-05]
[1761609608388,0.19175172,114150.0,114140.0,6.331e-05]
[1761609608789,0.1311498,114120.0,114110.0,0.05673]
[1761609609093,0.13274012,114120.0,114110.0,0.05673]
[1761609609393,0.14579012,114120.0,114110.0,0.05673]
[1761609609587,0.14579012,114120.0,114110.0,0.04396]
[1761609609891,0.14585343,114120.0,114110.0,0.04396]
[1761609610292,0.14585343,114120.0,114110.0,0.04496]
[1761609611484,0.14685343,114120.0,114110.0,0.04696]
[1761609612597,0.14685343,114120.0,114110.0,0.02484]
[1761609613291,0.14685343,114120.0,114110.0,0.003]
[1761609613790,0.13380343,114120.0,114110.0,0.05973]
[1761609614498,0.14685343,114120.0,114110.0,0.04696]
[1761609615798,0.14685343,114120.0,114110.0,0.02484]
[1761609615996,0.14685343,114120.0,114110.0,0.04696]
[1761609621893,0.13380343,114120.0,114110.0,0.05973]
[1761609622099,0.09028343,114120.0,114110.0,0.65973]
[1761609622298,0.13380343,114120.0,114110.0,0.1473674]
[1761609622603,0.00265363,114120.0,114110.0,0.1473674]
[1761609622800,0.04617363,114120.0,114110.0,0.1473674]
[1761609623193,0.04617363,114120.0,114110.0,0.05973]
[1761609624602,0.05922363,114120.0,114110.0,0.04696]
[1761609624799,0.00106331,114120.0,114110.0,0.1473674]
[1761609625008,0.04352,114160.0,114150.0,0.05673]
[1761609625502,0.04352,114160.0,114150.0,0.1443367]
[1761609626304,0.04452,114160.0,114150.0,0.1443367]
[1761609626495,0.04452,114160.0,114150.0,0.05673]
[1761609626692,0.05652,114160.0,114150.0,0.05873]
[1761609626999,0.05652,114160.0,114150.0,0.1463367]
[1761609627197,0.013,114160.0,114150.0,0.1463367]
[1761609627500,0.03543,114160.0,114150.0,0.1463367]
[1761609627704,0.02643,114160.0,114150.0,0.1453367]
[1761609628202,0.02543,114160.0,114150.0,0.1453367]
[1761609629201,0.02543,114160.0,114150.0,0.1463367]
[1761609629501,0.02343,114160.0,114150.0,0.1483367]
[1761609630705,0.05833,114160.0,114150.0,0.66073]
[1761609630903,0.05833,114160.0,114150.0,0.06073]
[1761609631103,0.05833,114160.0,114150.0,0.04796]
[1761609631700,0.04452,114160.0,114150.0,0.1482467]
[1761609635515,0.04452,114160.0,114150.0,0.06064]
[1761609636508,0.04352,114160.0,114150.0,0.05664]
[1761609636712,0.04352,114160.0,114150.0,0.04496]
[1761609636713,0.05933,114160.0,114150.0,0.04496]
[1761609637106,0.05933,114160.0,114150.0,0.02284]
[1761609637613,0.05933,114160.0,114150.0,0.04596]
[1761609638318,0.146929,114160.0,114150.0,0.04596]
[1761609638720,0.146929,114160.0,114150.0,0.001]
[1761609638920,0.146929,114160.0,114150.0,0.02245]
[1761609639120,0.146929,114160.0,114150.0,0.04557]
[1761609639311,0.1462144,114140.0,114130.0,0.04457]
[1761609639516,0.1324198,114120.0,114110.0,0.36804449]
[1761609639809,0.1324198,114120.0,114110.0,0.30536955]
[1761609640810,0.1374198,114120.0,114110.0,0.34436955]
[1761609641018,0.1374198,114120.0,114110.0,0.1050254]
[1761609641422,0.1374198,114120.0,114110.0,0.09625]
[1761609641814,0.1512298,114120.0,114110.0,0.08357]
[1761609642217,0.1374198,114120.0,114110.0,0.09625]
[1761609642821,0.1374198,114120.0,114110.0,0.09925]
[1761609643017,0.1374198,114120.0,114110.0,0.06921611]
[1761609643314,0.1354198,114120.0,114110.0,0.09121611]
[1761609643528,0.1354198,114120.0,114110.0,0.08225]
[1761609644321,0.1492298,114120.0,114110.0,0.06957]
[1761609644726,0.1354198,114120.0,114110.0,0.08225]
[1761609647030,0.1492298,114120.0,114110.0,0.06957]
[1761609648922,0.1354198,114120.0,114110.0,0.08225]
[1761609650633,0.1492298,114120.0,114110.0,0.08225]
[1761609651023,0.1492298,114120.0,114110.0,0.06957]
[1761609653330,0.1492298,114120.0,114110.0,0.025]
[1761609653835,0.1492298,114120.0,114110.0,0.06957]
[1761609654433,0.1492298,114120.0,114110.0,0.06657]
[1761609654634,0.1492298,114120.0,114110.0,0.06757]
[1761609654929,0.1492298,114120.0,114110.0,0.05157]
[1761609654930,0.1482298,114120.0,114110.0,0.05157]
[1761609655623,0.1123698,114120.0,114110.0,0.66425]
[1761609655823,0.1123698,114120.0,114110.0,0.06425]
[1761609656031,0.1344198,114120.0,114110.0,0.06425]
[1761609656225,0.002,114120.0,114110.0,0.1518875]
[1761609656623,0.02474,114120.0,114110.0,0.1518875]
[1761609658731,0.04679,114120.0,114110.0,0.1518875]
[1761609658930,0.02474,114120.0,114110.0,0.1518875]
[1761609660229,0.04614,114120.0,114110.0,0.06425]
[1761609660428,0.04614,114120.0,114110.0,0.05157]
[1761609660429,0.05985,114120.0,114110.0,0.05157]
[1761609670636,0.08199051,114120.0,114110.0,0.05157]
[1761609670840,0.05985,114120.0,114110.0,0.05157]
[1761609671137,0.08199259,114120.0,114110.0,0.05157]
[1761609672128,0.05985,114120.0,114110.0,0.05157]
[1761609674831,0.05985,114120.0,114110.0,0.06529]
[1761609674832,0.002,114120.0,114110.0,0.06529]
[1761609675339,0.04497,114120.0,114110.0,0.06529]
[1761609677535,0.002,114120.0,114110.0,0.1529274]
[1761609677739,0.02358,114120.0,114110.0,0.1529274]
[1761609678141,0.04497,114120.0,114110.0,0.1529274]
[1761609680745,0.02358,114120.0,114110.0,0.1529274]
[1761609681144,0.04497,114120.0,114110.0,0.1529274]
[1761609682448,0.002,114120.0,114110.0,0.1529274]
[1761609683053,0.02358,114120.0,114110.0,0.1529274]
[1761609683949,0.002,114120.0,114110.0,0.1529274]
[1761609684539,0.03746916,114150.0,114120.0,0.0876262]
[1761609684746,0.10258527,114150.0,114140.0,0.04276]
[1761609685046,0.06511611,114150.0,114140.0,0.05648]
[1761609685245,0.04297,114150.0,114140.0,0.1440944]
[1761609686151,0.04597,114150.0,114140.0,0.1460944]
[1761609686358,0.04597,114150.0,114140.0,0.05848]
[1761609686550,0.05979,114150.0,114140.0,0.1460944]
[1761609687050,0.04297,114150.0,114140.0,0.1470944]
[1761609687354,0.05879,114150.0,114140.0,0.04576]
[1761609688042,0.05879,114150.0,114140.0,0.1333744]
[1761609689254,0.05879,114150.0,114140.0,0.04576]
[1761609690755,0.05879,114150.0,114140.0,0.1333744]
[1761609691550,0.05879,114150.0,114140.0,0.04576]
[1761609691752,0.05879,114150.0,114140.0,0.02436]
[1761609691956,0.05879,114150.0,114140.0,0.1119744]
[1761609692358,0.05879,114150.0,114140.0,0.04754]
[1761609692655,0.05879,114150.0,114140.0,0.003]
[1761609693055,0.05879,114150.0,114140.0,0.0251]
[1761609693355,0.65879,114150.0,114140.0,0.003]
[1761609697560,0.05879,114150.0,114140.0,0.003]
[1761609697850,0.08085659,114150.0,114140.0,0.00165786]
[1761609700358,0.04334,114120.0,114110.0,0.05842]
[1761609701360,0.05634,114120.0,114110.0,0.05842]
[1761609701557,0.05634,114120.0,114110.0,0.06142]
[1761609701858,0.05634,114120.0,114110.0,0.04828]
[1761609702159,0.06034,114120.0,114110.0,0.07328]
[1761609702957,0.06034,114120.0,114110.0,0.08642]
[1761609705860,0.06034,114120.0,114110.0,0.1740574]
[1761609706060,0.02556,114120.0,114110.0,0.1740574]
[1761609706763,0.04734,114120.0,114110.0,0.1740574]
[1761609713967,0.02556,114120.0,114110.0,0.1740574]
[1761609714162,0.004,114120.0,114110.0,0.1740574]
[1761609714367,0.004,114120.0,114110.0,0.23673234]
[1761609716983,0.07999916,114160.0,114150.0,0.04528]
[1761609717184,0.07841457,114160.0,114150.0,0.04528]
[1761609717478,0.07841457,114160.0,114150.0,0.1328867]
[1761609717672,0.07841457,114160.0,114150.0,0.1460267]
[1761609717878,0.07841457,114160.0,114150.0,0.05842]
[1761609717879,0.05634,114160.0,114150.0,0.05842]
[1761609718075,0.05634,114160.0,114150.0,0.1460267]
[1761609718276,0.06034,114160.0,114150.0,0.1480267]
[1761609718586,0.06034,114160.0,114150.0,0.1348867]
[1761609718884,0.06034,114160.0,114150.0,0.002]
[1761609719184,0.08241333,114160.0,114150.0,0.002]
[1761609719485,0.10607249,114160.0,114150.0,0.002]
[1761609720586,0.05711,114130.0,114120.0,0.1331942]
[1761609720978,0.05711,114130.0,114120.0,0.04557]
[1761609721883,0.05711,114130.0,114120.0,0.06057]
[1761609722087,0.06011,114130.0,114120.0,0.06157]
[1761609722989,0.06011,114130.0,114120.0,0.06057]
[1761609724086,0.05911,114130.0,114120.0,0.04957]
[1761609727893,0.05911,114130.0,114120.0,0.04767]
[1761609729986,0.08112105,114130.0,114120.0,0.04767]
[1761609735498,0.08081689,114130.0,114120.0,0.04767]
[1761609737498,0.06791105,114130.0,114120.0,0.06131]
[1761609737691,0.02332,114130.0,114120.0,0.1489397]
[1761609737896,0.002,114130.0,114120.0,0.7489397]
[1761609738093,0.002,114130.0,114120.0,0.1489397]
[1761609738299,0.002,114130.0,114120.0,0.21161464]
[1761609738702,0.06153,114130.0,114120.0,0.11034494]
[1761609738897,0.06153,114130.0,114120.0,0.04767]
[1761609739202,0.08352758,114130.0,114120.0,0.04767]
[1761609739401,0.06153,114130.0,114120.0,0.04767]
[1761609739706,0.08352716,114130.0,114120.0,0.04767]
[1761609741801,0.06153,114130.0,114120.0,0.04767]
[1761609746007,0.0835258,114130.0,114120.0,0.04767]
[1761609747611,0.0835258,114130.0,114120.0,0.02527]
[1761609748305,0.0835258,114130.0,114120.0,0.04767]
[1761609760711,0.0695858,114130.0,114120.0,0.06126]
[1761609761114,0.0828858,114130.0,114120.0,0.06126]
[1761609767716,0.0828858,114130.0,114120.0,0.04767]
[1761609768802,0.0828858,114130.0,114120.0,0.06126]
[1761609771817,0.002,114130.0,114120.0,0.12393494]
[1761609772022,0.002,114130.0,114120.0,0.06126]
[1761609772209,0.002,114130.0,114120.0,0.12415639]
[1761609772410,0.002,114130.0,114120.0,0.21178619]
[1761609775216,0.02398,114130.0,114120.0,0.21178619]
[1761609775412,0.04715,114130.0,114120.0,0.12415639]
[1761609775619,0.02398,114130.0,114120.0,0.21178619]
[1761609776321,0.02398,114130.0,114120.0,0.12415639]
[1761609776520,0.02398,114130.0,114120.0,0.06126]
[1761609777518,0.04715,114130.0,114120.0,0.66126]
[1761609778621,0.04715,114130.0,114120.0,0.06126]
[1761609779422,0.06028,114130.0,114120.0,0.06126]
[1761609780221,0.06028,114130.0,114120.0,0.04767]
[1761609785623,0.04715,114130.0,114120.0,0.06054]
[1761609792524,0.06024,114130.0,114120.0,0.06054]
[1761609800225,0.06024,114130.0,114120.0,0.04767]
[1761609802232,0.08230751,114130.0,114120.0,0.004]
[1761609802836,0.06024,114130.0,114120.0,0.004]
[1761609804044,0.06024,114130.0,114120.0,0.04953]
[1761609804541,0.08231022,114130.0,114120.0,0.04953]
[1761609804728,0.08231022,114130.0,114120.0,0.02705]
[1761609806439,0.08231022,114130.0,114120.0,0.004]
[1761609806840,0.08231022,114130.0,114120.0,0.02705]
[1761609807536,0.08231022,114130.0,114120.0,0.04953]
[1761609809445,0.08231022,114130.0,114120.0,0.02705]
[1761609809945,0.08231022,114130.0,114120.0,0.004]
[1761609810745,0.10596938,114130.0,114120.0,0.004]
[1761609811246,0.04433,114100.0,114090.0,0.26897639]
[1761609811547,0.04433,114100.0,114090.0,0.12187639]
[1761609812547,0.04433,114100.0,114090.0,0.12287639]
[1761609813244,0.04433,114100.0,114090.0,0.13287639]
[1761609813245,0.04733,114100.0,114090.0,0.13287639]
[1761609813446,0.06007,114100.0,114090.0,0.13287639]
[1761609814649,0.06007,114100.0,114090.0,0.06998]
[1761609815151,0.06007,114100.0,114090.0,0.05675]
[1761609817253,0.06007,114100.0,114090.0,0.011]
[1761609817750,0.08235738,114100.0,114090.0,0.011]
[1761609818253,0.06007,114100.0,114090.0,0.011]
[1761609818739,0.06007,114100.0,114090.0,0.05675]
[1761609819651,0.08234199,114100.0,114090.0,0.05675]
[1761609819847,0.08234199,114100.0,114090.0,0.0341]
[1761609820050,0.08234199,114100.0,114090.0,0.05675]
[1761609820251,0.08234199,114100.0,114090.0,0.0341]
[1761609822149,0.06007,114100.0,114090.0,0.0341]
[1761609824153,0.06007,114100.0,114090.0,0.011]
[1761609824656,0.08232309,114100.0,114090.0,0.0341]
[1761609824852,0.06007,114100.0,114090.0,0.05675]
[1761609825355,0.06007,114100.0,114090.0,0.0341]
[1761609826750,0.08232119,114100.0,114090.0,0.05675]
[1761609828060,0.06007,114100.0,114090.0,0.06998]
[1761609828259,0.04733,114100.0,114090.0,0.06998]
[1761609828857,0.06007,114100.0,114090.0,0.06998]
[1761609829150,0.08232125,114100.0,114090.0,0.011]
[1761609829348,0.66007,114100.0,114090.0,0.011]
[1761609829553,0.05707,114080.0,114070.0,0.04582447]
[1761609830358,0.05707,114080.0,114070.0,0.02317447]
[1761609830560,0.07932668,114080.0,114070.0,0.02317447]
[1761609831056,0.07932668,114080.0,114070.0,0.02817447]
[1761609831366,0.08132668,114080.0,114070.0,0.02817447]
[1761609831661,0.08132668,114080.0,114070.0,0.05082447]
[1761609833759,0.08132668,114080.0,114070.0,0.00507447]
[1761609834148,0.08132668,114080.0,114070.0,0.05082447]
[1761609834357,0.06858668,114080.0,114070.0,0.06405447]
[1761609834656,0.04633,114080.0,114070.0,0.06405447]
[1761609835567,0.05907,114080.0,114070.0,0.06405447]
[1761609835860,0.05907,114080.0,114070.0,0.05082447]
[1761609837657,0.05907,114080.0,114070.0,0.06405447]
[1761609838155,0.12234829,114110.0,114070.0,0.06405447]
[1761609838156,0.89444,114130.0,114070.0,0.06405447]
[1761609838359,1.25084577,114130.0,114090.0,0.05619]
[1761609839160,1.85084577,114130.0,114090.0,0.05619]
[1761609839352,1.95184577,114130.0,114100.0,0.01278]
[1761609839558,1.35184577,114130.0,114100.0,0.01278]
[1761609839757,1.37384577,114130.0,114100.0,0.01278]
[1761609840164,1.35184577,114130.0,114100.0,0.01278]
[1761609840360,1.37384577,114130.0,114090.0,0.06119]
[1761609840865,1.37384577,114130.0,114100.0,0.005]
[1761609842470,0.6,114120.0,114080.0,0.03423]
[1761609842768,0.95059975,114130.0,114090.0,0.005]
[1761609842961,1.30059975,114130.0,114090.0,0.005]
[1761609843157,1.27959975,114130.0,114080.0,0.05619]
[1761609843469,0.1,114110.0,114100.0,0.005]
[1761609843766,0.1,114110.0,114080.0,0.05619]
[1761609843968,0.1,114110.0,114080.0,0.06119]
[1761609844268,0.019,114120.0,114090.0,0.05619]
[1761609844269,0.91352,114120.0,114090.0,0.05619]
[1761609844469,0.89552,114120.0,114090.0,0.05619]
[1761609845166,0.89452,114120.0,114090.0,0.05619]
[1761609845367,0.99452,114120.0,114090.0,0.05619]
[1761609846068,0.99552,114120.0,114090.0,0.05619]
[1761609846264,0.015,114110.0,114100.0,0.05725]
[1761609846861,0.019,114120.0,114100.0,0.05725]
[1761609847466,0.001,114120.0,114100.0,0.05725]
[1761609847762,0.015,114110.0,114100.0,0.06125]
[1761609848264,0.016,114110.0,114100.0,0.06125]
[1761609848970,0.001,114110.0,114100.0,0.05725]
[1761609849171,0.001,114110.0,114100.0,0.06225]
[1761609849572,0.001,114110.0,114100.0,0.05725]
[1761609849871,0.016,114110.0,114100.0,0.06125]
[1761609850371,0.0866125,114110.0,114100.0,0.06125]
[1761609850575,0.10782944,114110.0,114100.0,0.06125]
[1761609857975,0.03721694,114110.0,114100.0,0.06125]
[1761609860574,0.63721694,114110.0,114100.0,0.004]
[1761609861080,0.68451032,114110.0,114100.0,0.004]
[1761609861275,0.08451032,114110.0,114100.0,0.004]
[1761609861477,0.08351032,114110.0,114100.0,0.004]
[1761609861780,0.10019417,114110.0,114100.0,0.004]
[1761609862183,0.08519417,114110.0,114080.0,0.05673]
[1761609862374,0.0472702,114100.0,114080.0,0.05673]
[1761609862572,0.06848714,114100.0,114080.0,0.05673]
[1761609862778,0.0472702,114100.0,114080.0,0.05673]
[1761609862977,0.06848714,114100.0,114080.0,0.05673]
[1761609863178,0.0472702,114100.0,114080.0,0.05673]
[1761609863377,0.06848714,114100.0,114080.0,0.05673]
[1761609863689,0.0472702,114100.0,114080.0,0.06173]
[1761609863878,0.06848714,114100.0,114080.0,0.06173]
[1761609864778,0.06948714,114100.0,114080.0,0.06173]
[1761609864977,0.07448714,114100.0,114080.0,0.05673]
[1761609866183,0.03678,114090.0,114060.0,0.01373546]
[1761609866380,0.05799694,114090.0,114060.0,0.05768546]
[1761609866574,0.04277,114070.0,114060.0,0.05768546]
[1761609866780,0.07786694,114070.0,114060.0,0.04395]
[1761609867178,0.07794141,114070.0,114060.0,0.04395]
[1761609869077,0.08394141,114070.0,114060.0,0.04395]
[1761609870181,0.03439,114060.0,114050.0,0.05659]
[1761609870481,0.07754694,114060.0,114050.0,0.04329]
[1761609871586,0.07027694,114060.0,114050.0,0.05613]
[1761609871780,0.08354694,114060.0,114050.0,0.04329]
[1761609872881,0.09226848,114060.0,114050.0,0.04329]
[1761609873781,0.09226848,114060.0,114020.0,0.0133]
[1761609873782,0.01327,114040.0,114020.0,0.02205]
[1761609873988,7.447e-05,114030.0,114020.0,0.05613]
[1761609874488,0.04313447,114030.0,114020.0,0.05613]
[1761609875289,0.13083267,114030.0,114020.0,0.05613]
[1761609875690,0.13683267,114030.0,114020.0,0.05913]
[1761609876584,0.13683267,114030.0,114020.0,0.05713]
[1761609876784,0.11489267,114030.0,114020.0,0.05713]
[1761609876984,0.09377267,114030.0,114020.0,0.05713]
[1761609877785,0.11489267,114030.0,114020.0,0.05713]
[1761609877988,0.09377267,114030.0,114020.0,0.05713]
[1761609878480,0.11489267,114030.0,114020.0,0.05713]
[1761609879193,0.13683267,114030.0,114020.0,0.05713]
[1761609879391,0.13683267,114030.0,114020.0,0.65713]
[1761609879788,0.02712,114030.0,114020.0,0.65713]
[1761609879988,0.1148182,114030.0,114020.0,0.65713]
[1761609880192,0.1367582,114030.0,114020.0,0.65713]
[1761609881191,0.1307582,114030.0,114020.0,0.65713]
[1761609881394,0.1367582,114030.0,114020.0,0.65713]
[1761609884292,0.0936982,114030.0,114020.0,0.05713]
[1761609884492,0.0936982,114030.0,114020.0,0.65713]
[1761609885892,0.0936982,114030.0,114020.0,0.50042]
[1761609890702,0.0936982,114030.0,114020.0,0.04329]
[1761609891197,0.0936982,114030.0,114020.0,0.1309958]
[1761609891598,0.0876982,114030.0,114020.0,0.1309958]
[1761609891803,0.0876905,114040.0,114030.0,0.00999999]
[1761609892097,0.01388,114070.0,114050.0,0.0876822]
[1761609892303,0.087675,114060.0,114050.0,0.09768219]
[1761609892499,0.1009332,114080.0,114050.0,0.09768219]
[1761609892803,0.1009332,114080.0,114070.0,0.00999999]
[1761609893599,0.1220532,114080.0,114070.0,0.00999999]
[1761609894001,0.1499932,114080.0,114070.0,0.00999999]
[1761609894199,0.1439932,114080.0,114070.0,0.00999999]
[1761609894400,0.1499932,114080.0,114070.0,0.01199999]
[1761609897909,0.1499932,114080.0,114070.0,0.61199999]
[1761609898708,0.1499932,114080.0,114070.0,0.01199999]
[1761609899011,0.2928632,114080.0,114070.0,9e-08]
[1761609899210,0.31433231,114080.0,114070.0,9e-08]
[1761609900914,0.01342,114060.0,114020.0,0.0877015]
[1761609901117,0.05866,114040.0,114010.0,1.01041619]
[1761609901313,0.05866,114040.0,114010.0,1.16101848]
[1761609901619,0.05866,114030.0,114010.0,0.25560949]
[1761609901815,0.05866,114030.0,114010.0,0.34332289]
[1761609902116,0.05866,114030.0,114010.0,0.31850588]
[1761609902316,0.05866,114030.0,114020.0,0.003]
[1761609903411,0.06466,114030.0,114020.0,0.003]
[1761609903919,0.05866,114030.0,114020.0,0.003]
[1761609904119,0.06266,114030.0,114020.0,0.023]
[1761609904415,0.06266,114030.0,114020.0,0.02]
[1761609905323,0.06266,114030.0,114020.0,0.023]
[1761609912716,0.20553,114030.0,114020.0,0.023]
[1761609928330,0.22712396,114030.0,114020.0,0.023]
[1761609929132,0.20553,114030.0,114020.0,0.023]
[1761609930432,0.22715812,114030.0,114020.0,0.023]
[1761609930826,0.22715812,114030.0,114020.0,0.021]
[1761609931630,0.22315812,114030.0,114020.0,0.001]
[1761609931826,0.22615812,114030.0,114020.0,0.007]
[1761609932332,0.24970123,114030.0,114020.0,0.007]
[1761609933034,0.24970123,114030.0,114020.0,0.006]
[1761609933329,0.24670123,114030.0,114020.0,0.004]
[1761609933526,0.25170123,114030.0,114020.0,0.004]
[1761609933927,0.25170123,114030.0,114020.0,0.003]
[1761609935630,0.22815812,114030.0,114020.0,0.003]
[1761609941041,0.20653,114030.0,114020.0,0.003]
[1761609948345,0.22813164,114030.0,114020.0,0.003]
[1761609949339,0.05536,114010.0,114000.0,0.06300012]
[1761609949643,0.05536,114010.0,114000.0,0.00010373]
[1761609949844,0.19823,114010.0,114000.0,0.00010373]
[1761609950637,0.19823,114010.0,114000.0,0.00610373]
[1761609950838,0.20123,114010.0,114000.0,0.00610373]
[1761609951341,0.20123,114010.0,114000.0,0.00710373]
[1761609957839,0.0126,113970.0,113960.0,0.0937916]
[1761609958048,0.05405796,113970.0,113960.0,0.07875561]
[1761609958349,0.05405796,113970.0,113960.0,0.72710771]
[1761609958548,0.05405796,113970.0,113960.0,0.71139715]
[1761609958740,0.05415398,113970.0,113960.0,0.71139715]
[1761609958941,0.05415398,113970.0,113960.0,0.6483521]
[1761609959139,0.05415398,113970.0,113960.0,0.5606]
[1761609959343,0.05415398,113970.0,113960.0,0.62362875]
[1761609959947,0.05815398,113970.0,113960.0,1.22662875]
[1761609960853,0.05815398,113970.0,113960.0,1.22762875]
[1761609961151,0.05815398,113970.0,113960.0,1.31538075]
[1761609962447,0.05815398,113970.0,113960.0,1.252352]
[1761609963450,0.00409602,113970.0,113960.0,0.86852075]
[1761609963648,0.05632,113980.0,113970.0,0.0406]
[1761609965150,0.06532,113980.0,113970.0,0.1323443]
[1761609965347,0.06532,113980.0,113970.0,0.1333443]
[1761609966248,0.06532,113980.0,113970.0,0.0253]
[1761609967156,0.06532,113980.0,113970.0,0.0456]
[1761609967355,0.06532,113980.0,113970.0,0.1333444]
[1761609967547,0.06532,113980.0,113970.0,0.0456]
[1761609968556,0.06532,113980.0,113970.0,0.0253]
[1761609968957,0.06532,113980.0,113970.0,0.6253]
[1761609969155,0.06532,113980.0,113970.0,0.7724]
[1761609969458,0.06532,113980.0,113970.0,0.7927]
[1761609970250,0.20819,113980.0,113970.0,0.1927]
[1761609970556,0.20819,113980.0,113970.0,0.005]
[1761609970958,0.20819,113980.0,113970.0,0.0456]
[1761609971355,0.06532,113980.0,113970.0,0.0456]
[1761609973660,0.06532,113980.0,113970.0,0.0253]
[1761609974153,0.20819,113980.0,113970.0,0.005]
[1761609976855,0.20819,113980.0,113970.0,0.0456]
[1761609977156,0.20819,113980.0,113970.0,0.005]
[1761609988062,0.22985983,113980.0,113970.0,0.005]
[1761609994282,0.22985983,113980.0,113970.0,0.0456]
[1761609994482,0.20819,113980.0,113970.0,0.0456]
[1761609995583,0.22991047,113980.0,113970.0,0.0456]
[1761609996081,0.20819,113980.0,113970.0,0.0456]
[1761609996285,0.22991203,113980.0,113970.0,0.0456]
[1761609998483,0.22991203,113980.0,113970.0,0.1927]
[1761610007485,0.22991203,113980.0,113970.0,0.1724]
[1761610007692,0.22991203,113980.0,113970.0,0.1521]
[1761610010293,0.22991203,113980.0,113970.0,0.005]
[1761610024600,0.82991203,113980.0,113970.0,0.005]
[1761610026411,0.08704203,113980.0,113970.0,0.005]
[1761610027719,0.22991203,113980.0,113970.0,0.0456]
[1761610028400,0.22991203,113980.0,113970.0,0.0253]
[1761610029408,0.22991203,113980.0,113970.0,0.005]
[1761610032112,0.22991203,113980.0,113970.0,0.0456]
[1761610032317,0.20819,113980.0,113970.0,0.10862875]
[1761610033017,0.20819,113980.0,113970.0,0.19637275]
[1761610033612,0.06813459,114010.0,113980.0,0.1442484]
[1761610033818,0.18625,114000.0,113990.0,0.05652]
[1761610034318,0.19975,114000.0,113990.0,0.05652]
[1761610035018,0.18625,114000.0,113990.0,0.05652]
[1761610035224,0.18625,114000.0,113990.0,0.1442486]
[1761610035415,0.19725,114000.0,113990.0,0.06052]
[1761610036618,0.19725,114000.0,113990.0,0.1482486]
[1761610037014,0.19725,114000.0,113990.0,0.17298376]
[1761610039522,0.19725,114000.0,113990.0,0.32008376]
[1761610041817,0.21075,114000.0,113990.0,0.20762]
[1761610042911,0.21075,114000.0,113990.0,0.19378]
[1761610043326,0.21075,114000.0,113990.0,0.20762]
[1761610044024,0.19725,114000.0,113990.0,0.20762]
[1761610044325,0.21223914,114000.0,113990.0,0.20762]
[1761610048426,0.19873914,114000.0,113990.0,0.20762]
[1761610051628,0.21168914,114000.0,113990.0,0.20062]
[1761610057827,0.21168914,114000.0,113990.0,0.17253]
[1761610058022,0.24168914,114000.0,113990.0,0.004]
[1761610058228,0.26346657,114000.0,113990.0,0.004]
[1761610059720,0.88706069,114000.0,113960.0,0.00713]
[1761610059928,0.05676,113970.0,113960.0,0.04539]
[1761610060432,0.20111914,113970.0,113960.0,0.04539]
[1761610061330,0.20411914,113970.0,113960.0,0.05339]
[1761610070133,0.20411914,113970.0,113960.0,0.06636]
[1761610070931,0.20411914,113970.0,113960.0,0.05339]
[1761610074742,0.20411914,113970.0,113960.0,0.20049]
[1761610076642,0.01295,113980.0,113970.0,0.02249]
[1761610076945,0.19963,113980.0,113970.0,0.04539]
[1761610077947,0.20463,113980.0,113970.0,0.05339]
[1761610080335,0.20463,113980.0,113970.0,0.06701]
[1761610080646,0.20463,113980.0,113970.0,0.21411]
[1761610081341,0.19168,113980.0,113970.0,0.21411]
[1761610081546,0.19168,113980.0,113970.0,0.301854]
[1761610081743,0.19168,113980.0,113970.0,0.21411]
[1761610084042,0.19168,113980.0,113970.0,0.301854]
[1761610084851,0.005,113980.0,113970.0,0.301854]
[1761610085050,0.05526,114000.0,113990.0,0.05676]
[1761610085449,0.19813,114000.0,113990.0,0.05676]
[1761610086353,0.05526,114000.0,113990.0,0.05676]
[1761610086551,0.05926,114000.0,113990.0,0.05314]
[1761610087158,0.06026,114000.0,113990.0,0.05314]
[1761610087454,0.05626,114000.0,113990.0,0.04314]
[1761610087649,0.06126,114000.0,113990.0,0.05614]
[1761610088155,0.06026,114000.0,113990.0,0.05614]
[1761610090859,0.20313,114000.0,113990.0,0.05614]
[1761610091152,0.20313,114000.0,113990.0,0.06881]
[1761610091356,0.19018,114000.0,113990.0,0.06881]
[1761610092456,0.19018,114000.0,113990.0,0.0907173]
[1761610092658,0.19018,114000.0,113990.0,0.06881]
[1761610093964,0.19018,114000.0,113990.0,0.1565387]
[1761610095465,0.04731,114000.0,113990.0,0.1565387]
[1761610095766,0.005,114000.0,113990.0,0.17788064]
[1761610097166,0.003,114000.0,113990.0,0.17788064]
[1761610097554,0.003,114000.0,113990.0,0.32498064]
[1761610097555,0.00169477,114000.0,113990.0,0.32498064]
[1761610097760,0.07975515,114030.0,114020.0,0.04376]
[1761610098256,0.20108,114030.0,114020.0,0.04376]
[1761610098856,0.20208,114030.0,114020.0,0.04376]